bitfinex/quotes_SOLUSD_20241102
["timestamp","ask_amount","ask_price","bid_price","bid_amount"]
[1730564142118,11.45127965,163.95,163.93,20.0]
[1730564142534,11.45127965,163.96,163.91,20.0]
[1730564142725,11.45127965,163.97,163.91,107.46223365]
[1730564143931,11.45127965,163.96,163.91,107.46223365]
[1730564144336,11.45127965,163.97,163.91,107.46223365]
[1730564144521,11.45127965,163.97,163.91,123.97263365]
[1730564146925,11.45127965,163.94,163.91,95.634484]
[1730564147750,6.098,163.99,163.91,51.8576]
[1730564147751,11.45127965,163.93,163.91,51.8576]
[1730564147923,11.45127965,163.92,163.91,15.2522]
[1730564148124,11.45127965,163.92,163.88,21.3569]
[1730564148329,11.45127965,163.91,163.88,21.3569]
[1730564148535,11.45127965,163.93,163.88,32.80817965]
[1730564149429,11.45127965,163.93,163.89,20.0]
[1730564149624,11.45127965,163.94,163.9,23.776884]
[1730564149935,11.45127965,163.94,163.91,20.0]
[1730564151359,11.45127965,163.95,163.92,6.1005]
[1730564152437,11.45127965,163.95,163.92,21.3518]
[1730564153043,11.45127965,163.93,163.92,15.2513]
[1730564155239,11.45127965,163.93,163.92,21.3518]
[1730564157150,11.45127965,163.94,163.92,21.3518]
[1730564159037,11.45127965,163.93,163.92,21.3518]
[1730564159349,11.45127965,163.93,163.91,20.0]
[1730564159655,11.45127965,163.92,163.91,20.0]
[1730564160653,11.45127965,163.92,163.9,6.1009]
[1730564160846,11.45127965,163.91,163.89,21.3555]
[1730564161034,11.45127965,163.9,163.89,35.2539]
[1730564161225,11.45127965,163.91,163.89,35.2539]
[1730564162149,11.45127965,163.91,163.89,41.3555]
[1730564164234,11.45127965,163.9,163.89,21.3555]
[1730564164528,11.45127965,163.9,163.84,20.0]
[1730564164740,11.45127965,163.87,163.85,15.2573]
[1730564164946,11.45127965,163.87,163.81,48.61947965]
[1730564164947,11.45127965,163.86,163.82,21.3643]
[1730564165150,11.45127965,163.84,163.82,21.3643]
[1730564165454,11.45127965,163.85,163.82,21.3643]
[1730564166462,11.45127965,163.85,163.82,15.2604]
[1730564166632,11.45127965,163.84,163.82,15.2604]
[1730564166831,11.45127965,163.83,163.82,15.2604]
[1730564167559,11.45127965,163.83,163.78,21.3697]
[1730564168159,11.45127965,163.82,163.78,21.3697]
[1730564169052,11.45127965,163.81,163.79,20.0]
[1730564170344,11.45127965,163.81,163.79,26.105]
[1730564170542,11.45127965,163.81,163.79,41.3684]
[1730564172050,11.45127965,163.8,163.79,41.3684]
[1730564174659,11.45127965,163.8,163.77,20.0]
[1730564174952,11.45127965,163.79,163.77,20.0]
[1730564176441,11.45127965,163.79,163.78,6.1057]
[1730564177940,11.45127965,163.8,163.78,21.37]
[1730564178135,11.45127965,163.81,163.78,21.37]
[1730564181256,11.45127965,163.8,163.78,21.37]
[1730564183263,11.45127965,163.79,163.78,21.37]
[1730564188353,11.45127965,163.82,163.78,21.37]
[1730564189463,11.45127965,163.81,163.78,21.37]
[1730564191264,16.569,163.87,163.78,32.82127965]
[1730564191265,11.45127965,163.84,163.78,32.82127965]
[1730564191461,11.45127965,163.84,163.79,20.0]
[1730564192451,11.45127965,163.83,163.79,20.0]
[1730564192860,11.45127965,163.83,163.8,21.3675]
[1730564194165,11.45127965,163.84,163.81,20.0]
[1730564195074,11.45127965,163.87,163.81,31.45127965]
[1730564196273,11.45127965,163.86,163.83,20.0]
[1730564197579,11.45127965,163.86,163.84,21.3622]
[1730564198975,11.45127965,163.87,163.84,21.3622]
[1730564199553,15.7371,163.91,163.84,21.3622]
[1730564199554,11.45127965,163.86,163.84,21.3622]
[1730564199753,11.45127965,163.86,163.8,41.97627965]
[1730564199754,11.45127965,163.85,163.8,30.525]
[1730564199953,11.45127965,163.83,163.81,21.3658]
[1730564200962,11.45127965,163.83,163.8,30.525]
[1730564201768,11.45127965,163.82,163.8,30.525]
[1730564202278,11.45127965,163.82,163.78,51.8987]
[1730564202279,11.45127965,163.81,163.78,51.8987]
[1730564202582,11.45127965,163.79,163.78,21.37]
[1730564202983,11.45127965,163.79,163.78,15.2643]
[1730564203279,11.45127965,163.79,163.75,16.642]
[1730564203280,11.45127965,163.79,163.76,6.1064]
[1730564203578,11.45127965,163.78,163.76,21.3726]
[1730564204355,11.45127965,163.77,163.76,21.3726]
[1730564204579,11.45127965,163.77,163.74,23.776884]
[1730564205082,11.45127965,163.76,163.73,21.3766]
[1730564206177,11.45127965,163.77,163.73,15.269]
[1730564207574,11.45127965,163.74,163.73,15.269]
[1730564207762,11.45127965,163.75,163.73,15.269]
[1730564209179,11.45127965,163.76,163.73,15.269]
[1730564210692,11.45127965,163.74,163.73,15.269]
[1730564211173,11.45127965,163.74,163.67,21.3844]
[1730564211374,11.45127965,163.72,163.67,21.3844]
[1730564212698,11.45127965,163.72,163.68,20.0]
[1730564213381,11.45127965,163.7,163.69,15.2727]
[1730564213682,11.45127965,163.7,163.67,6.1098]
[1730564213882,11.45127965,163.68,163.67,6.1098]
[1730564214284,11.45127965,163.68,163.66,6.1101]
[1730564214466,11.45127965,163.67,163.66,6.1101]
[1730564214784,11.45127965,163.67,163.64,6.1109]
[1730564214977,11.45127965,163.65,163.64,6.1109]
[1730564215285,11.45127965,163.65,163.61,30.5595]
[1730564215482,11.45127965,163.64,163.61,30.5595]
[1730564216266,11.45127965,163.65,163.62,20.0]
[1730564216466,11.45127965,163.65,163.63,21.3896]
[1730564217587,11.45127965,163.65,163.63,15.2783]
[1730564218586,11.45127965,163.64,163.63,15.2783]
[1730564218770,11.45127965,163.66,163.63,15.2783]
[1730564221889,11.45127965,163.66,163.61,30.5595]
[1730564222088,11.45127965,163.63,163.59,20.0]
[1730564223390,11.45127965,163.63,163.6,21.3935]
[1730564224483,11.45127965,163.61,163.6,15.2811]
[1730564224896,11.45127965,163.62,163.6,15.2811]
[1730564225200,11.45127965,163.66,163.61,11.45127965]
[1730564225383,11.45127965,163.67,163.62,11.45127965]
[1730564226071,12.7649,163.7,163.6,15.2811]
[1730564226072,11.45127965,163.66,163.61,31.45127965]
[1730564226269,11.45127965,163.66,163.62,21.391]
[1730564226467,6.6559,163.7,163.62,21.391]
[1730564226468,11.45127965,163.64,163.62,21.391]
[1730564227480,11.45127965,163.63,163.59,30.5642]
[1730564227684,11.45127965,163.63,163.6,20.0]
[1730564228191,11.45127965,163.62,163.6,20.0]
[1730564228582,17.93720523,163.63,163.6,20.0]
[1730564229574,17.93720523,163.63,163.57,48.50410523]
[1730564229774,17.93720523,163.63,163.6,15.2811]
[1730564230674,17.93720523,163.64,163.6,15.2811]
[1730564232596,17.93720523,163.63,163.6,15.2811]
[1730564235597,17.93720523,163.64,163.6,15.2811]
[1730564235792,17.93720523,163.63,163.6,15.2811]
[1730564235993,17.93720523,163.64,163.6,15.2811]
[1730564236397,17.93720523,163.64,163.59,17.93720523]
[1730564237796,17.93720523,163.64,163.59,21.3949]
[1730564238611,17.93720523,163.68,163.63,17.93720523]
[1730564238794,15.602,163.72,163.63,17.93720523]
[1730564238795,17.93720523,163.69,163.63,17.93720523]
[1730564239314,17.93720523,163.7,163.64,17.93720523]
[1730564239603,17.93720523,163.76,163.7,20.0]
[1730564239790,17.93720523,163.77,163.71,17.93720523]
[1730564239993,33.53920523,163.78,163.72,33.20710523]
[1730564240388,17.93720523,163.79,163.73,17.93720523]
[1730564240690,17.93720523,163.8,163.74,37.93720523]
[1730564240886,17.93720523,163.82,163.76,17.93720523]
[1730564241597,17.93720523,163.82,163.76,23.38720523]
[1730564241783,15.185,163.83,163.76,5.45]
[1730564241784,17.93720523,163.79,163.76,5.45]
[1730564241987,17.93720523,163.79,163.77,6.1061]
[1730564243496,17.93720523,163.8,163.77,21.3714]
[1730564245885,17.93720523,163.79,163.77,21.3714]
[1730564246507,17.93720523,163.78,163.77,15.2653]
[1730564247217,17.93720523,163.8,163.77,21.3714]
[1730564247508,6.22929,163.83,163.77,21.3714]
[1730564247509,17.93720523,163.79,163.77,21.3714]
[1730564248009,6.22929,163.83,163.77,15.2653]
[1730564248010,17.93720523,163.78,163.77,15.2653]
[1730564249614,17.93720523,163.79,163.77,15.2653]
[1730564249801,17.93720523,163.78,163.75,6.1068]
[1730564250002,17.93720523,163.77,163.75,6.1068]
[1730564251811,6.1047,163.81,163.75,6.1068]
[1730564251812,17.93720523,163.76,163.75,6.1068]
[1730564252012,17.93720523,163.76,163.71,15.2706]
[1730564252202,17.93720523,163.75,163.72,6.1078]
[1730564252401,17.93720523,163.75,163.72,21.3777]
[1730564253715,17.93720523,163.75,163.72,15.2699]
[1730564253916,17.93720523,163.75,163.7,6.1087]
[1730564254211,17.93720523,163.73,163.7,6.1087]
[1730564255215,17.93720523,163.73,163.68,17.93720523]
[1730564255389,17.93720523,163.73,163.7,15.2718]
[1730564256198,17.93720523,163.72,163.7,15.2718]
[1730564257400,17.93720523,163.72,163.68,20.0]
[1730564257612,17.93720523,163.73,163.68,20.0]
[1730564258518,11.46513524,163.71,163.69,21.3818]
[1730564260407,11.46513524,163.72,163.69,21.3818]
[1730564260705,11.46513524,163.74,163.69,32.84693524]
[1730564260920,11.46513524,163.73,163.69,21.3818]
[1730564261805,11.46513524,163.73,163.69,15.2727]
[1730564262006,11.46513524,163.72,163.69,15.2727]
[1730564262401,11.46513524,163.73,163.69,15.2727]
[1730564262819,11.46513524,163.73,163.69,21.3818]
[1730564263707,11.46513524,163.73,163.7,20.0]
[1730564264422,11.46513524,163.74,163.71,6.1083]
[1730564265218,11.46513524,163.75,163.71,21.3792]
[1730564265430,11.46513524,163.77,163.71,32.84433524]
[1730564265611,11.46513524,163.76,163.72,20.0]
[1730564266310,11.46513524,163.76,163.73,21.3766]
[1730564266827,11.46513524,163.75,163.73,21.3766]
[1730564267002,11.46513524,163.74,163.72,6.1079]
[1730564267324,11.46513524,163.73,163.71,6.1083]
[1730564267624,11.46513524,163.72,163.71,6.1083]
[1730564267796,11.46513524,163.72,163.7,21.3801]
[1730564267997,45.86054096,163.76,163.7,21.3801]
[1730564267998,11.46513524,163.71,163.7,21.3801]
[1730564268211,11.46513524,163.71,163.7,15.2715]
[1730564268413,11.46513524,163.71,163.67,21.3844]
[1730564269324,11.46513524,163.71,163.68,20.0]
[1730564269525,11.46513524,163.71,163.69,21.3818]
[1730564270103,11.46513524,163.7,163.69,15.2727]
[1730564270529,11.46513524,163.71,163.69,21.3818]
[1730564271506,11.46513524,163.72,163.69,15.2727]
[1730564272003,11.46513524,163.74,163.7,20.0]
[1730564272414,11.46513524,163.73,163.7,20.0]
[1730564274317,11.46513524,163.73,163.71,6.1083]
[1730564274522,11.46513524,163.74,163.71,6.1083]
[1730564276321,6.23199,163.76,163.71,6.1083]
[1730564276322,11.46513524,163.73,163.71,6.1083]
[1730564276503,11.46513524,163.72,163.7,6.1085]
[1730564276707,11.46513524,163.72,163.7,21.3803]
[1730564278309,11.46513524,163.71,163.7,21.3803]
[1730564278511,11.46513524,163.71,163.66,21.3857]
[1730564278810,11.46513524,163.7,163.66,21.3857]
[1730564279826,11.46513524,163.72,163.66,32.85083524]
[1730564280029,11.46513524,163.73,163.67,11.46513524]
[1730564280208,11.46513524,163.73,163.68,20.0]
[1730564280519,11.46513524,163.74,163.68,31.46513524]
[1730564281115,11.46513524,163.73,163.67,31.46513524]
[1730564282519,11.46513524,163.73,163.69,20.0]
[1730564282916,6.1065,163.76,163.69,20.0]
[1730564283121,11.46513524,163.71,163.68,21.3831]
[1730564284230,51.96704096,163.76,163.68,15.2737]
[1730564284231,11.46513524,163.72,163.68,15.2737]
[1730564284433,11.46513524,163.73,163.68,26.73883524]
[1730564284637,11.46513524,163.73,163.68,15.2737]
[1730564285321,11.46513524,163.73,163.68,21.3831]
[1730564285517,0.12549,163.78,163.69,31.46513524]
[1730564285518,6.23149,163.78,163.69,31.46513524]
[1730564285746,11.46513524,163.75,163.69,31.46513524]
[1730564286516,11.46513524,163.75,163.71,20.0]
[1730564286724,11.46513524,163.74,163.71,20.0]
[1730564286922,6.1058,163.78,163.7,21.3805]
[1730564286923,11.46513524,163.73,163.7,21.3805]
[1730564288238,11.46513524,163.73,163.7,15.2718]
[1730564288834,11.46513524,163.72,163.7,15.2718]
[1730564289642,11.46513524,163.71,163.7,15.2718]
[1730564290156,11.46513524,163.72,163.7,15.2718]
[1730564290322,11.46513524,163.74,163.7,15.2718]
[1730564290525,11.46513524,163.76,163.71,31.46513524]
[1730564290848,11.46513524,163.78,163.73,20.0]
[1730564291227,11.46513524,163.79,163.73,31.46513524]
[1730564291453,11.46513524,163.79,163.75,20.0]
[1730564291751,11.46513524,163.78,163.76,6.1064]
[1730564293027,11.46513524,163.77,163.75,15.2664]
[1730564293227,11.46513524,163.76,163.75,15.2664]
[1730564294448,11.46513524,163.76,163.72,15.2699]
[1730564294653,11.46513524,163.75,163.72,15.2699]
[1730564297537,11.46513524,163.74,163.72,15.2699]
[1730564299160,11.46513524,163.74,163.69,41.3818]
[1730564299370,11.46513524,163.73,163.69,41.3818]
[1730564299538,11.46513524,163.74,163.69,71.9273]
[1730564300165,11.46513524,163.75,163.69,83.39243524]
[1730564301748,11.46513524,163.73,163.69,71.9273]
[1730564301949,11.46513524,163.72,163.69,41.3818]
[1730564302263,11.46513524,163.72,163.69,21.3818]
[1730564303756,11.46513524,163.72,163.69,15.2727]
[1730564305859,11.46513524,163.7,163.69,15.2727]
[1730564306060,11.46513524,163.7,163.67,21.3844]
[1730564306561,6.1069,163.75,163.67,21.3844]
[1730564306562,11.46513524,163.68,163.67,21.3844]
[1730564307640,11.46513524,163.68,163.65,12.43813981]
[1730564307843,11.46513524,163.67,163.65,12.43813981]
[1730564311160,11.46513524,163.69,163.65,27.71463981]
[1730564311471,11.46513524,163.7,163.65,27.71463981]
[1730564311767,11.46513524,163.69,163.65,27.71463981]
[1730564313858,11.46513524,163.68,163.65,27.71463981]
[1730564315370,12.2576,163.73,163.65,27.71463981]
[1730564315371,11.46513524,163.69,163.65,27.71463981]
[1730564316492,11.46513524,163.68,163.65,27.71463981]
[1730564317577,11.46513524,163.69,163.65,27.71463981]
[1730564320579,11.46513524,163.7,163.67,21.3844]
[1730564321678,11.46513524,163.71,163.67,21.3844]
[1730564324472,11.46513524,163.7,163.67,21.3844]
[1730564326581,11.46513524,163.71,163.67,21.3844]
[1730564331380,11.46513524,163.71,163.67,15.2746]
[1730564333664,11.46513524,163.71,163.67,21.3844]
[1730564334165,11.46513524,163.69,163.67,21.3844]
[1730564335080,11.46513524,163.68,163.67,21.3844]
[1730564336082,11.46513524,163.69,163.67,21.3844]
[1730564338471,11.46513524,163.68,163.67,21.3844]
[1730564339580,11.46513524,163.68,163.66,6.32469258]
[1730564339773,11.46513524,163.67,163.66,6.32469258]
[1730564340792,11.46513524,163.67,163.65,6.1105]
[1730564340989,11.46513524,163.66,163.61,20.0]
[1730564341192,11.46513524,163.66,163.65,6.33171855]
[1730564341373,11.46513524,163.66,163.61,52.85733524]
[1730564341681,11.46513524,163.66,163.65,6.3330291]
[1730564341887,11.46513524,163.66,163.61,52.85733524]
[1730564342189,11.46513524,163.66,163.65,12.44375144]
[1730564342493,11.46513524,163.66,163.64,21.3883]
[1730564342804,11.46513524,163.66,163.65,6.33338959]
[1730564343091,11.46513524,163.67,163.65,6.33338959]
[1730564343686,11.46513524,163.67,163.65,12.44388959]
[1730564344995,11.46513524,163.66,163.65,12.44388959]
[1730564345384,11.46513524,163.7,163.65,12.44388959]
[1730564345574,11.46513524,163.7,163.65,27.72038959]
[1730564346388,11.46513524,163.71,163.65,39.18552483]
[1730564348782,11.46513524,163.72,163.66,11.46513524]
[1730564349193,11.46513524,163.71,163.66,20.0]
[1730564350201,11.46513524,163.71,163.67,21.3844]
[1730564350496,11.46513524,163.75,163.69,11.46513524]
[1730564351591,11.46513524,163.75,163.7,21.3805]
[1730564353095,11.46513524,163.77,163.71,31.46513524]
[1730564353484,11.46513524,163.75,163.7,21.3805]
[1730564353693,11.46513524,163.73,163.7,21.3805]
[1730564354688,11.46513524,163.73,163.7,15.2718]
[1730564354897,11.46513524,163.72,163.7,15.2718]
[1730564356198,11.46513524,163.73,163.7,15.2718]
[1730564357596,11.46513524,163.71,163.68,6.1094]
[1730564357904,6.1075,163.74,163.68,17.57453524]
[1730564357905,11.46513524,163.74,163.68,17.57453524]
[1730564358081,11.46513524,163.74,163.68,32.84823524]
[1730564359000,11.46513524,163.75,163.7,21.3805]
[1730564359205,11.46513524,163.74,163.7,21.3805]
[1730564362206,11.46513524,163.72,163.7,21.3805]
[1730564363201,11.46513524,163.71,163.7,21.3805]
[1730564365413,11.46513524,163.73,163.7,21.3805]
[1730564366507,11.46513524,163.72,163.7,21.3805]
[1730564366696,11.46513524,163.73,163.7,21.3805]
[1730564367103,11.46513524,163.76,163.7,32.84563524]
[1730564367801,11.46513524,163.77,163.72,11.46513524]
[1730564368204,11.46513524,163.77,163.71,31.46513524]
[1730564368587,11.46513524,163.77,163.72,11.46513524]
[1730564369026,11.46513524,163.77,163.73,21.3766]
[1730564370397,11.46513524,163.78,163.73,21.3766]
[1730564370986,11.46513524,163.78,163.73,32.84173524]
[1730564371304,11.46513524,163.8,163.74,31.46513524]
[1730564372791,11.46513524,163.8,163.75,21.3739]
[1730564373601,11.46513524,163.81,163.75,32.83903524]
[1730564373805,11.46513524,163.8,163.75,21.3739]
[1730564375019,11.46513524,163.79,163.75,21.3739]
[1730564380221,11.46513524,163.81,163.75,32.83903524]
[1730564383013,11.46513524,163.81,163.76,20.0]
[1730564383215,11.46513524,163.82,163.76,31.46513524]
[1730564384098,11.46513524,163.82,163.77,11.46513524]
[1730564384423,16.4567,163.86,163.78,32.83513524]
[1730564384424,11.46513524,163.84,163.78,32.83513524]
[1730564384612,11.46513524,163.84,163.79,20.0]
[1730564384804,11.46513524,163.85,163.79,31.46513524]
[1730564385120,11.46513524,163.84,163.79,20.0]
[1730564386213,11.46513524,163.84,163.8,21.3675]
[1730564386999,16.4567,163.86,163.81,31.46513524]
[1730564387000,11.46513524,163.86,163.81,31.46513524]
[1730564387206,11.46513524,163.87,163.81,31.46513524]
[1730564387423,11.46513524,163.86,163.81,31.46513524]
[1730564388227,11.46513524,163.86,163.82,21.3648]
[1730564388533,11.46513524,163.88,163.83,31.46513524]
[1730564388730,11.46513524,163.89,163.83,31.46513524]
[1730564389732,11.46513524,163.89,163.84,21.3622]
[1730564390333,11.46513524,163.89,163.85,20.0]
[1730564390833,11.46513524,163.9,163.86,6.1027]
[1730564391409,11.46513524,163.91,163.86,21.3596]
[1730564393832,6.1004,163.93,163.87,31.46513524]
[1730564393833,11.46513524,163.93,163.87,31.46513524]
[1730564394047,11.46513524,163.94,163.88,11.46513524]
[1730564394340,11.46513524,163.95,163.89,31.46513524]
[1730564395312,11.46513524,163.95,163.91,20.0]
[1730564396829,11.46513524,163.95,163.92,6.1005]
[1730564398219,11.46513524,163.94,163.92,6.1005]
[1730564398421,11.46513524,163.94,163.92,21.3518]
[1730564399147,11.46513524,163.95,163.92,21.3518]
[1730564399325,11.46513524,163.94,163.92,21.3518]
[1730564400932,11.46513524,163.95,163.92,21.3518]
[1730564401137,11.46513524,163.97,163.92,21.3518]
[1730564401721,6.0975,164.0,163.92,21.3518]
[1730564401722,11.46513524,163.96,163.92,21.3518]
[1730564402740,11.46513524,163.95,163.92,21.3518]
[1730564403045,11.46513524,163.94,163.92,21.3518]
[1730564403825,11.46513524,163.95,163.92,21.3518]
[1730564404143,11.46513524,163.96,163.92,21.3518]
[1730564405352,11.46513524,163.97,163.93,20.0]
[1730564406349,11.46513524,163.98,163.93,20.0]
[1730564406574,11.46513524,163.98,163.94,21.3491]
[1730564407226,11.46513524,164.0,163.95,20.0]
[1730564408041,11.46513524,163.99,163.95,20.0]
[1730564408635,11.46513524,163.99,163.97,20.0]
[1730564409733,0.6021934,164.01,163.97,20.0]
[1730564409947,11.46513524,163.98,163.97,20.0]
[1730564411534,12.06732864,164.01,163.97,20.0]
[1730564412047,0.6021934,164.01,163.97,20.0]
[1730564412648,11.46513524,164.0,163.98,21.344]
[1730564412947,11.46513524,163.99,163.98,35.2457]
[1730564414244,11.46513524,163.99,163.98,15.2457]
[1730564414544,11.46513524,163.99,163.95,21.3479]
[1730564414740,11.46513524,163.98,163.96,20.0]
[1730564416445,11.46513524,163.98,163.97,26.0986]
[1730564427455,11.46513524,163.98,163.95,15.2485]
[1730564427784,11.46513524,163.96,163.93,6.1]
[1730564428064,11.46513524,163.94,163.93,6.1]
[1730564428251,11.46513524,163.96,163.93,6.1]
[1730564428561,11.46513524,163.97,163.93,21.3504]
[1730564429148,11.46513524,163.97,163.94,20.0]
[1730564429463,11.46513524,163.97,163.94,26.0995]
[1730564430148,11.46513524,163.96,163.94,26.0995]
[1730564433660,11.46513524,163.97,163.94,26.0995]
[1730564434549,11.46513524,163.97,163.94,41.3489]
[1730564437766,11.46513524,163.96,163.94,41.3489]
[1730564438263,11.46513524,163.97,163.94,41.3489]
[1730564441355,11.46513524,163.96,163.94,41.3489]
[1730564442268,11.46513524,163.95,163.93,6.33622884]
[1730564442467,11.46513524,163.94,163.93,6.33622884]
[1730564445875,17.56483524,163.94,163.93,6.33622884]
[1730564446252,63.4253762,163.94,163.88,15.2547]
[1730564446472,11.46513524,163.89,163.86,6.1024]
[1730564446659,11.46513524,163.88,163.86,6.1024]
[1730564446874,11.46513524,163.9,163.87,6.33759581]
[1730564447578,11.46513524,163.9,163.88,20.0]
[1730564447971,11.46513524,163.9,163.88,26.1016]
[1730564449671,11.46513524,163.91,163.88,41.3566]
[1730564450458,11.46513524,163.9,163.88,41.3566]
[1730564452871,11.46513524,163.91,163.88,41.3566]
[1730564453185,11.46513524,163.92,163.88,41.3566]
[1730564459477,11.46513524,163.91,163.88,41.3566]
[1730564460686,6.0994,163.95,163.88,41.3566]
[1730564460687,11.46513524,163.92,163.88,41.3566]
[1730564461292,11.46513524,163.89,163.88,51.8667]
[1730564461483,11.46513524,163.89,163.88,15.255]
[1730564461669,11.46513524,163.89,163.87,6.33737944]
[1730564461875,0.22549,163.95,163.87,6.33737944]
[1730564462275,11.46513524,163.88,163.87,12.43967944]
[1730564462671,11.46513524,163.89,163.87,12.43967944]
[1730564462879,11.46513524,163.88,163.87,12.43967944]
[1730564463882,11.46513524,163.89,163.87,12.43967944]
[1730564464082,11.46513524,163.88,163.87,12.43967944]
[1730564468177,11.46513524,163.88,163.87,6.33737944]
[1730564468682,11.46513524,163.88,163.84,6.1033]
[1730564468888,22.0344,163.9,163.84,6.1033]
[1730564468889,11.46513524,163.85,163.84,6.1033]
[1730564469393,11.46513524,163.85,163.84,6.34131125]
[1730564470992,11.46513524,163.86,163.84,12.44481125]
[1730564473083,22.0344,163.9,163.84,27.70351125]
[1730564473084,11.46513524,163.87,163.84,27.70351125]
[1730564473602,11.46513524,163.88,163.85,20.0]
[1730564473789,11.46513524,163.89,163.85,20.0]
[1730564474385,11.46513524,163.9,163.86,21.3596]
[1730564475099,11.46513524,163.89,163.86,21.3596]
[1730564476003,11.46513524,163.92,163.87,20.0]
[1730564477688,11.46513524,163.92,163.88,21.357]
[1730564478104,11.46513524,163.91,163.88,21.357]
[1730564478988,11.46513524,163.92,163.88,21.357]
[1730564479197,11.46513524,163.94,163.89,20.0]
[1730564479397,11.46513524,163.95,163.89,31.46513524]
[1730564479822,11.46513524,163.95,163.9,21.3544]
[1730564480226,11.46513524,163.95,163.91,20.0]
[1730564480820,11.46513524,163.95,163.92,6.1005]
[1730564481219,11.46513524,163.97,163.93,20.0]
[1730564482229,11.46513524,163.97,163.94,6.0997]
[1730564483328,11.46513524,163.97,163.94,21.3491]
[1730564483523,11.46513524,163.99,163.95,20.0]
[1730564483902,11.46513524,164.0,163.95,20.0]
[1730564484430,11.46513524,164.0,163.97,20.0]
[1730564485696,12.06732864,164.01,163.97,20.0]
[1730564486625,12.06732864,164.01,163.98,6.0983]
[1730564488122,11.46513524,164.0,163.98,6.0983]
[1730564491840,11.46513524,163.99,163.97,20.0]
[1730564492127,11.46513524,163.98,163.97,20.0]
[1730564495618,11.46513524,163.98,163.93,21.3503]
[1730564495914,11.46513524,163.97,163.93,21.3503]
[1730564497043,11.46513524,163.98,163.94,26.0994]
[1730564498619,11.46513524,163.98,163.94,41.3488]
[1730564499125,11.46513524,164.0,163.96,20.0]
[1730564499312,12.06732864,164.01,163.96,20.0]
[1730564499518,11.46513524,163.99,163.96,20.0]
[1730564500131,11.46513524,163.98,163.96,20.0]
[1730564500333,11.46513524,163.97,163.95,20.0]
[1730564500727,11.46513524,163.97,163.96,26.099]
[1730564502529,11.46513524,163.97,163.96,20.0]
[1730564503633,11.46513524,163.98,163.97,20.0]
[1730564504172,11.46513524,163.98,163.96,20.0]
[1730564504327,11.46513524,163.98,163.95,20.0]
[1730564505442,11.46513524,163.98,163.95,26.0994]
[1730564509536,11.46513524,163.97,163.95,26.0994]
[1730564509734,11.46513524,163.96,163.93,20.0]
[1730564510048,11.46513524,163.94,163.93,20.0]
[1730564511046,11.46513524,163.94,163.93,26.1001]
[1730564511740,11.46513524,163.95,163.93,41.3505]
[1730564512135,11.46513524,163.96,163.93,41.3505]
[1730564513936,11.46513524,163.95,163.93,41.3505]
[1730564517852,11.46513524,163.95,163.92,6.34026678]
[1730564518049,11.46513524,163.93,163.92,26.34026678]
[1730564518245,11.46513524,163.93,163.92,6.34026678]
[1730564521963,11.46513524,163.93,163.92,12.44076678]
[1730564522332,11.46513524,163.93,163.92,6.34026678]
[1730564522551,11.46513524,163.93,163.92,12.44076678]
[1730564522938,11.46513524,163.95,163.93,20.0]
[1730564523858,11.46513524,163.95,163.92,27.69206678]
[1730564524050,11.46513524,163.95,163.93,20.0]
[1730564524642,11.46513524,163.94,163.93,20.0]
[1730564526439,11.46513524,163.94,163.92,6.34026678]
[1730564526767,11.46513524,163.93,163.92,6.34026678]
[1730564527138,11.59062524,163.93,163.92,6.34026678]
[1730564527342,57.5766562,163.93,163.86,15.2565]
[1730564527552,11.46513524,163.87,163.84,6.1035]
[1730564527944,11.46513524,163.86,163.83,21.3633]
[1730564528159,11.46513524,163.85,163.83,21.3633]
[1730564528362,11.46513524,163.85,163.84,6.34320652]
[1730564528749,11.46513524,163.86,163.84,6.34320652]
[1730564529456,11.46513524,163.86,163.84,12.44660652]
[1730564530872,11.46513524,163.85,163.84,26.34320652]
[1730564532171,11.46513524,163.86,163.84,32.44650652]
[1730564532346,11.46513524,163.87,163.84,32.44650652]
[1730564536553,11.46513524,163.86,163.84,32.44650652]
[1730564541785,11.46513524,163.87,163.84,47.70520652]
[1730564541992,11.46513524,163.9,163.85,20.0]
[1730564542371,11.46513524,163.89,163.85,20.0]
[1730564543184,11.46513524,163.89,163.86,6.1027]
[1730564543985,11.46513524,163.88,163.86,6.1027]
[1730564544379,11.46513524,163.87,163.86,6.1027]